fUST/lending_fUST_20251212
["ID","MTS","AMOUNT","RATE_DAILY","PERIOD"]
[398297623,1765501853807,-1518.405958,0.00012329,2]
[398297624,1765501853817,-177.137623,0.00012329,2]
[398297625,1765501853826,-1518.405958,0.00012329,2]
[398297626,1765501853836,-151.0,0.00012329,2]
[398297627,1765501853846,-177.137623,0.00012329,2]
[398297628,1765501853859,-1518.405958,0.00012329,2]
[398297629,1765501853869,-151.0,0.00012329,2]
[398297630,1765501853878,-177.137623,0.00012329,2]
[398297631,1765501853887,-1518.405952,0.00012329,2]
[398297632,1765501853897,-798.950285,0.00012329,2]
[398297633,1765501853906,-177.137614,0.00012329,2]
[398297634,1765501853915,-798.950285,0.00012329,2]
[398297635,1765501853924,-613.9378,0.00012329,2]
[398297636,1765501853933,-798.950285,0.00012329,2]
[398297637,1765501853942,-613.9378,0.00012329,2]
[398297638,1765501853951,-798.950276,0.00012329,2]
[398297639,1765501853960,-613.9378,0.00012329,2]
[398297640,1765501853969,-613.937804,0.00012329,2]
[398297641,1765501853979,-151.0,0.00012329,2]
[398297642,1765501853989,-156.176759,0.00012329,2]
[398297643,1765501853997,-156.176759,0.00012329,2]
[398297644,1765501854007,-156.176759,0.00012329,2]
[398297645,1765501854016,-156.176763,0.00012329,2]
[398297646,1765501854025,-151.0,0.00012329,2]
[398297647,1765501854034,-151.0,0.00012329,2]
[398297648,1765501854043,-260.698058,0.00012329,2]
[398297649,1765501854052,-260.698058,0.00012329,2]
[398297650,1765501854062,-260.698058,0.00012329,2]
[398297651,1765501854071,-1801.727534,0.00012329,2]
[398297652,1765501854083,-260.698064,0.00012329,2]
[398297653,1765501854092,-439.268062,0.00012329,2]
[398297654,1765501854102,-1801.727534,0.00012329,2]
[398297655,1765501854111,-439.268062,0.00012329,2]
[398297656,1765501854120,-1801.727534,0.00012329,2]
[398297657,1765501854129,-439.268062,0.00012329,2]
[398297658,1765501854139,-1801.727531,0.00012329,2]
[398297659,1765501854149,-439.268072,0.00012329,2]
[398297660,1765501854158,-250.066685,0.00012329,2]
[398297661,1765501854168,-250.066685,0.00012329,2]
[398297662,1765501854177,-176.537843,0.00012329,2]
[398297663,1765501854187,-250.066685,0.00012329,2]
[398297664,1765501854196,-176.537843,0.00012329,2]
[398297665,1765501854205,-250.066677,0.00012329,2]
[398297666,1765501854215,-176.537843,0.00012329,2]
[398297667,1765501854224,-176.537835,0.00012329,2]
[398297668,1765501854233,-10000.0,0.00012329,2]
[398297669,1765501854243,-10000.0,0.00012329,2]
[398297670,1765501854252,-6152.358584,0.00012329,2]
[398297671,1765501854261,-10000.0,0.00012329,2]
[398297672,1765501854270,-6152.358584,0.00012329,2]
[398297673,1765501854280,-10000.0,0.00012329,2]
[398297674,1765501854289,-6152.358584,0.00012329,2]
[398297675,1765501854298,-6152.35858,0.00012329,2]
[398297676,1765501854308,-151.0,0.00012329,2]
[398297677,1765501854317,-151.0,0.00012329,2]
[398297678,1765501854327,-151.0,0.00012329,2]
[398297679,1765501854337,-650.627976,0.00012329,2]
[398297680,1765501854347,-650.627976,0.00012329,2]
[398297681,1765501854358,-650.627976,0.00012329,2]
[398297682,1765501854368,-650.627966,0.00012329,2]
[398297683,1765501854377,-593.176386,0.00012329,2]
[398297684,1765501854387,-593.176386,0.00012329,2]
[398297685,1765501854396,-3698.93663,0.00012329,2]
[398297686,1765501854406,-593.176386,0.00012329,2]
[398297687,1765501854415,-219.93046,0.00012329,2]
[398297688,1765501854424,-593.176394,0.00012329,2]
[398297689,1765501854433,-219.93046,0.00012329,2]
[398297690,1765501854442,-3698.93663,0.00012329,2]
[398297691,1765501854452,-864.0,0.00012448,2]
[398297692,1765501854462,-5733.26906364,0.000125,2]
[398297693,1765501854471,-1000.88336847,0.000125,2]
[398297694,1765501854480,-500.0,0.00012603,2]
[398297695,1765501854490,-1539.2012208,0.00012622,2]
[398297696,1765501854500,-151.0,0.00012645,2]
[398297697,1765501854509,-663.93287602,0.00012645,2]
[398297698,1765501854518,-3207.40519818,0.00012645,2]
[398297699,1765501854529,-3508.8553814,0.00012692,2]
[398297700,1765501854538,-2000.0,0.000128,5]
[398297701,1765501854547,-4291.7868445,0.00012848,2]
[398297702,1765501854556,-1526.702265,0.00012848,2]
[398297703,1765501854566,-500.0,0.00012877,2]
[398297704,1765501854574,-160.0,0.000129,3]
[398297705,1765501854583,-160.0,0.000129,3]
[398297706,1765501854592,-775.31048887,0.00012906,2]
[398297707,1765501854601,-504.3395408,0.00012921,2]
[398297708,1765501854611,-5888.0,0.00012922,2]
[398297709,1765501854619,-5888.0,0.00012925,2]
[398297710,1765501854629,-5888.0,0.00012935,2]
[398297711,1765501854638,-5888.0,0.00012975,2]
[398297712,1765501854647,-1539.2012208,0.00012992,2]
[398297713,1765501854657,-5888.0,0.00012996,2]
[398297714,1765501854666,-350.00898361,0.00013,5]
[398297715,1765501854675,-5888.0,0.00013022,2]
[398297716,1765501854684,-500.0,0.00013026,2]
[398297717,1765501854693,-5888.0,0.00013036,2]
[398297718,1765501854702,-500.0,0.00013041,2]
[398297719,1765501854711,-5888.0,0.00013041,2]
[398297720,1765501854720,-5888.0,0.00013051,2]
[398297721,1765501854729,-5888.0,0.00013085,2]
[398297722,1765501854739,-500.0,0.00013098,2]
[398297723,1765501854749,-500.0,0.00013101,2]
[398297724,1765501854758,-500.0,0.00013103,2]
[398297725,1765501854768,-5888.0,0.00013103,2]
[398297726,1765501854778,-500.0,0.00013118,2]
[398297727,1765501854787,-500.0,0.00013151,2]
[398297728,1765501854796,-500.0,0.00013162,2]
[398297729,1765501854805,-823.0,0.00013163,2]
[398297730,1765501854815,-5888.0,0.00013163,2]
[398297731,1765501854824,-5888.0,0.0001318,2]
[398297732,1765501854833,-151.0,0.00013193,2]
[398297733,1765501854844,-688.49839244,0.00013193,2]
[398297734,1765501854859,-5888.0,0.00013222,2]
[398297735,1765501854869,-5365.38724731,0.00013241,2]
[398297736,1765501854888,-522.61275269,0.00013241,2]
[398297737,1765501854899,-5478.51631807,0.00013244,2]
[398297738,1765501856248,-250.0,0.00011628,2]
[398297739,1765501856259,-1102.641634,0.00012329,2]
[398297740,1765501856699,-2596.294996,0.00012329,2]
[398297741,1765501856710,-219.93046,0.00012329,2]
[398297742,1765501856720,-3698.93663,0.00012329,2]
[398297743,1765501856730,-219.93046,0.00012329,2]
[398297744,1765501856740,-3698.93663,0.00012329,2]
[398297745,1765501856750,-219.93046,0.00012329,2]
[398297746,1765501856761,-3698.93663,0.00012329,2]
[398297747,1765501856771,-219.93046,0.00012329,2]
[398297748,1765501856780,-3698.93663,0.00012329,2]
[398297749,1765501856790,-219.93046,0.00012329,2]
[398297750,1765501856800,-3698.936638,0.00012329,2]
[398297751,1765501856810,-219.930468,0.00012329,2]
[398297752,1765501856820,-3326.07919052,0.00013193,2]
[398297753,1765501856830,-409.48368193,0.00013244,2]
[398297754,1765501856840,-5888.0,0.00013261,2]
[398297755,1765501856850,-500.0,0.00013273,2]
[398297756,1765501856866,-500.0,0.00013273,2]
[398297757,1765501856887,-500.0,0.00013273,2]
[398297758,1765501857117,-500.0,0.00013273,2]
[398297759,1765501857127,-500.0,0.00013273,2]
[398297760,1765501857137,-500.0,0.00013273,2]
[398297761,1765501857146,-500.0,0.00013273,2]
[398297762,1765501857155,-500.0,0.00013273,2]
[398297763,1765501857165,-500.0,0.00013273,2]
[398297764,1765501857175,-500.0,0.00013273,2]
[398297765,1765501857184,-500.0,0.00013273,2]
[398297766,1765501857194,-500.0,0.00013273,2]
[398297767,1765501857203,-500.0,0.00013273,2]
[398297768,1765501857213,-394.81986589,0.00013273,2]
[398297769,1765501857224,-500.0,0.00013273,2]
[398297770,1765501857233,-500.0,0.00013273,2]
[398297771,1765501857243,-500.0,0.00013273,2]
[398297772,1765501857253,-500.0,0.00013273,2]
[398297773,1765501857262,-500.0,0.00013273,2]
[398297774,1765501857272,-500.0,0.00013273,2]
[398297775,1765501857282,-500.0,0.00013273,2]
[398297776,1765501857291,-500.0,0.00013273,2]
[398297777,1765501857300,-500.0,0.00013273,2]
[398297778,1765501857309,-500.0,0.00013273,2]
[398297779,1765501857319,-500.0,0.00013273,2]
[398297780,1765501857329,-500.0,0.00013273,2]
[398297781,1765501857339,-500.0,0.00013273,2]
[398297782,1765501857348,-500.0,0.00013273,2]
[398297783,1765501857357,-500.0,0.00013273,2]
[398297784,1765501857367,-500.0,0.00013273,2]
[398297785,1765501857376,-500.0,0.00013273,2]
[398297786,1765501857386,-500.0,0.00013273,2]
[398297787,1765501857396,-500.0,0.00013273,2]
[398297788,1765501857406,-500.0,0.00013273,2]
[398297789,1765501857416,-260.62922769,0.00013273,2]
[398297790,1765501857425,-500.0,0.00013273,2]
[398297791,1765501857435,-634.35531951,0.00013273,2]
[398297792,1765501857444,-500.0,0.00013273,2]
[398297793,1765501857454,-500.0,0.00013273,2]
[398297794,1765501857464,-500.0,0.00013273,2]
[398297795,1765501857473,-320.51971693,0.00013273,2]
[398297796,1765501857482,-500.0,0.00013273,2]
[398297797,1765501857492,-500.0,0.00013273,2]
[398297798,1765501857501,-500.0,0.00013273,2]
[398297799,1765501857510,-210.0781899,0.00013273,2]
[398297800,1765501857520,-500.0,0.00013273,2]
[398297801,1765501857530,-500.0,0.00013273,2]
[398297802,1765501857539,-500.53080693,0.00013273,2]
[398297803,1765501857548,-171.10068086,0.00013273,2]
[398297804,1765501857558,-393.15338692,0.00013273,2]
[398297805,1765501857569,-500.0,0.00013273,2]
[398297806,1765501857579,-500.0,0.00013273,2]
[398297807,1765501857588,-500.0,0.00013299,2]
[398297808,1765501857597,-5888.0,0.00013347,2]
[398297809,1765501857607,-5888.0,0.00013352,2]
[398297810,1765501857616,-172.31344197,0.00013357,10]
[398297811,1765501857626,-1539.2012208,0.00013363,2]
[398297812,1765501857635,-957.6270859,0.00013373,2]
[398297813,1765501857644,-340.6533208,0.00013373,2]
[398297814,1765501857653,-5888.0,0.00013393,2]
[398297815,1765501857663,-5888.0,0.0001341,2]
[398297816,1765501857672,-500.0,0.00013425,2]
[398297817,1765501857681,-190.0,0.00013429,2]
[398297818,1765501857691,-500.0,0.00013441,2]
[398297819,1765501857700,-500.0,0.00013446,2]
[398297820,1765501857709,-500.0,0.00013461,2]
[398297821,1765501857719,-23426.61458802,0.000135,2]
[398297822,1765501857728,-10000.0,0.0001354,2]
[398297823,1765501857737,-500.0,0.00013557,2]
[398297824,1765501857746,-500.0,0.0001356,2]
[398297825,1765501857755,-500.0,0.0001361,2]
[398297826,1765501857765,-500.0,0.00013652,2]
[398297827,1765501857775,-300.0,0.00013673,2]
[398297828,1765501857784,-500.0,0.0001368,2]
[398297829,1765501857793,-1000.0,0.00013693,2]
[398297830,1765501857803,-2307.12,0.00013698,2]
[398297831,1765501857812,-2307.12,0.00013698,2]
[398297832,1765501857824,-2307.12,0.00013698,2]
[398297833,1765501857833,-2307.12,0.00013698,2]
[398297834,1765501857843,-2307.12,0.00013698,2]
[398297835,1765501857853,-2307.12,0.00013698,2]
[398297836,1765501857867,-2307.12,0.00013698,2]
[398297837,1765501857877,-2307.12,0.00013698,2]
[398297838,1765501857886,-2307.12,0.00013698,2]
[398297839,1765501857896,-2307.12,0.00013698,2]
[398297840,1765501857907,-2307.12,0.00013698,2]
[398297841,1765501857916,-2307.12,0.00013698,2]
[398297842,1765501857925,-2307.12,0.00013698,2]
[398297843,1765501857936,-2307.12,0.00013698,2]
[398297844,1765501857945,-2307.12,0.00013698,2]
[398297845,1765501857955,-2307.12,0.00013698,2]
[398297846,1765501857965,-2307.12,0.00013698,2]
[398297847,1765501857975,-2307.12,0.00013698,2]
[398297848,1765501857984,-2307.12,0.00013698,2]
[398297849,1765501857994,-2307.12,0.00013698,2]
[398297850,1765501858003,-2307.12,0.00013698,2]
[398297851,1765501858013,-2307.12,0.00013698,2]
[398297852,1765501858022,-2307.12,0.00013698,2]
[398297853,1765501858031,-2307.33508529,0.00013698,2]
[398297854,1765501858041,-500.0,0.00013698,2]
[398297855,1765501858051,-500.0,0.00013698,2]
[398297856,1765501858060,-500.0,0.00013698,2]
[398297857,1765501858071,-500.0,0.00013698,2]
[398297858,1765501858081,-500.0,0.00013698,2]
[398297859,1765501858090,-500.0,0.00013698,2]
[398297860,1765501858099,-500.0,0.00013698,2]
[398297861,1765501858109,-500.0,0.00013698,2]
[398297862,1765501858118,-500.0,0.00013698,2]
[398297863,1765501858127,-500.0,0.00013698,2]
[398297864,1765501858136,-500.0,0.00013698,2]
[398297865,1765501858146,-500.0,0.00013698,2]
[398297866,1765501858155,-500.0,0.00013698,2]
[398297867,1765501858165,-500.0,0.00013698,2]
[398297868,1765501858174,-500.0,0.00013698,2]
[398297869,1765501858184,-500.0,0.00013698,2]
[398297870,1765501858195,-500.0,0.00013698,2]
[398297871,1765501858213,-500.0,0.00013698,2]
[398297872,1765501858234,-500.0,0.00013698,2]
[398297873,1765501858249,-500.0,0.00013698,2]
[398297874,1765501858259,-500.0,0.00013698,2]
[398297875,1765501858270,-500.0,0.00013698,2]
[398297876,1765501858280,-500.0,0.00013698,2]
[398297877,1765501858291,-500.0,0.00013698,2]
[398297878,1765501858300,-500.0,0.00013698,2]
[398297879,1765501858310,-500.0,0.00013698,2]
[398297880,1765501858321,-500.0,0.00013698,2]
[398297881,1765501858331,-500.0,0.00013698,2]
[398297882,1765501858341,-500.0,0.00013698,2]
[398297883,1765501858351,-500.0,0.00013698,2]
[398297884,1765501858360,-500.0,0.00013698,2]
[398297885,1765501858369,-500.0,0.00013698,2]
[398297886,1765501858379,-500.0,0.00013698,2]
[398297887,1765501858388,-500.0,0.00013698,2]
[398297888,1765501858398,-500.0,0.00013698,2]
[398297889,1765501858408,-500.0,0.00013698,2]
[398297890,1765501858418,-500.0,0.00013698,2]
[398297891,1765501858428,-500.0,0.00013698,2]
[398297892,1765501858439,-500.0,0.00013698,2]
[398297893,1765501858449,-500.0,0.00013698,2]
[398297894,1765501858459,-500.0,0.00013698,2]
[398297895,1765501858468,-500.0,0.00013698,2]
[398297896,1765501858478,-627.26192665,0.00013698,2]
[398297897,1765501858487,-504.09310128,0.00013698,2]
[398297898,1765501858497,-500.0,0.00013698,2]
[398297899,1765501858506,-500.0,0.00013698,2]
[398297900,1765501858516,-500.0,0.00013698,2]
[398297901,1765501858525,-500.0,0.00013698,2]
[398297902,1765501858534,-500.0,0.00013698,2]
[398297903,1765501858543,-500.0,0.00013698,2]
[398297904,1765501858553,-500.0,0.00013698,2]
[398297905,1765501858563,-500.0,0.00013698,2]
[398297906,1765501858572,-500.0,0.00013698,2]
[398297907,1765501858582,-500.0,0.00013698,2]
[398297908,1765501858591,-500.0,0.00013698,2]
[398297909,1765501858601,-500.0,0.00013698,2]
[398297910,1765501858612,-500.0,0.00013698,2]
[398297911,1765501858622,-500.0,0.00013698,2]
[398297912,1765501858631,-291.32375274,0.00013698,2]
[398297913,1765501858642,-500.0,0.00013698,2]
[398297914,1765501858652,-500.0,0.00013698,2]
[398297915,1765501858662,-500.0,0.00013698,2]
[398297916,1765501858673,-500.0,0.00013698,2]
[398297917,1765501858683,-500.0,0.00013698,2]
[398297918,1765501858692,-299.35511608,0.00013698,2]
[398297919,1765501858703,-500.0,0.00013698,2]
[398297920,1765501858713,-500.0,0.00013698,2]
[398297921,1765501858723,-500.0,0.00013698,2]
[398297922,1765501858732,-500.0,0.00013698,2]
[398297923,1765501858742,-500.0,0.00013698,2]
[398297924,1765501858752,-500.0,0.00013698,2]
[398297925,1765501858762,-500.0,0.00013698,2]
[398297926,1765501858772,-500.0,0.00013698,2]
[398297927,1765501858782,-500.0,0.00013698,2]
[398297928,1765501858792,-196.68964112,0.00013698,2]
[398297929,1765501858801,-500.0,0.00013698,2]
[398297930,1765501858810,-500.0,0.00013698,2]
[398297931,1765501858820,-500.0,0.00013698,2]
[398297932,1765501858829,-500.0,0.00013698,2]
[398297933,1765501858839,-500.0,0.00013698,2]
[398297934,1765501858849,-500.0,0.00013698,2]
[398297935,1765501858863,-500.0,0.00013698,2]
[398297936,1765501858872,-500.0,0.00013698,2]
[398297937,1765501858882,-500.0,0.00013698,2]
[398297938,1765501858892,-500.0,0.00013698,2]
[398297939,1765501858903,-500.0,0.00013698,2]
[398297940,1765501858912,-500.0,0.00013698,2]
[398297941,1765501858922,-500.0,0.00013698,2]
[398297942,1765501858934,-500.0,0.00013698,2]
[398297943,1765501858944,-500.0,0.00013698,2]
[398297944,1765501858953,-500.0,0.00013698,2]
[398297945,1765501858963,-500.0,0.00013698,2]
[398297946,1765501858973,-500.0,0.00013698,2]
[398297947,1765501858982,-252.02445181,0.00013698,2]
[398297948,1765501858992,-500.0,0.00013698,2]
[398297949,1765501859001,-512.41807434,0.00013698,2]
[398297950,1765501859011,-1711.65,0.00013698,2]
[398297951,1765501859020,-1711.65,0.00013698,2]
[398297952,1765501859030,-1711.65,0.00013698,2]
[398297953,1765501859039,-1711.65,0.00013698,2]
[398297954,1765501859049,-1711.65,0.00013698,2]
[398297955,1765501859059,-1711.65,0.00013698,2]
[398297956,1765501859069,-1711.65,0.00013698,2]
[398297957,1765501859079,-1711.65,0.00013698,2]
[398297958,1765501859089,-1711.65,0.00013698,2]
[398297959,1765501859098,-1711.65,0.00013698,2]
[398297960,1765501859108,-1711.65,0.00013698,2]
[398297961,1765501859118,-1711.65,0.00013698,2]
[398297962,1765501859127,-1711.65,0.00013698,2]
[398297963,1765501859137,-1711.65,0.00013698,2]
[398297964,1765501859146,-1711.65,0.00013698,2]
[398297965,1765501859156,-1711.65,0.00013698,2]
[398297966,1765501859166,-1711.65,0.00013698,2]
[398297967,1765501859176,-1711.65,0.00013698,2]
[398297968,1765501859186,-1711.65,0.00013698,2]
[398297969,1765501859197,-1711.65,0.00013698,2]
[398297970,1765501859207,-1711.65,0.00013698,2]
[398297971,1765501859216,-1711.65,0.00013698,2]
[398297972,1765501859226,-1711.65,0.00013698,2]
[398297973,1765501859237,-1711.82672087,0.00013698,2]
[398297974,1765501859247,-500.0,0.00013698,2]
[398297975,1765501859257,-500.0,0.00013698,2]
[398297976,1765501859266,-500.0,0.00013698,2]
[398297977,1765501859276,-500.0,0.00013698,2]
[398297978,1765501859285,-500.0,0.00013698,2]
[398297979,1765501859295,-633.50166958,0.00013698,2]
[398297980,1765501859304,-3872.47,0.00013698,2]
[398297981,1765501859313,-2921.9538271,0.00013698,2]
[398298039,1765503032935,-347.72093099,8.8e-05,2]
[398298040,1765503032945,-178.14,8.8e-05,2]
[398298041,1765503032955,-310.85647531,0.00010221,2]
[398298042,1765503032964,-169.8125937,0.000108,2]
[398298043,1765503033008,-240.49810487,0.000108,2]
[398298044,1765503033018,-163.55189513,0.00010999,2]
[398298060,1765503038576,-136.44810487,0.00010999,2]
[398298061,1765503038587,-302.50830292,0.00010999,2]
[398298063,1765503038599,-236.61051612,0.00010999,2]
[398298065,1765503038609,-260.38874181,0.00010999,2]
[398298066,1765503038619,-539.11881904,0.00010999,2]
[398298068,1765503038628,-539.11881904,0.00010999,2]
[398298069,1765503038638,-539.11881904,0.00010999,2]
[398298070,1765503038648,-539.11881904,0.00010999,2]
[398298071,1765503038658,-539.11881904,0.00010999,2]
[398298072,1765503038667,-539.11881904,0.00010999,2]
[398298073,1765503038677,-539.11881904,0.00010999,2]
[398298074,1765503038686,-539.11881904,0.00010999,2]
[398298075,1765503038696,-539.11881904,0.00010999,2]
[398298076,1765503038706,-539.11881904,0.00010999,2]
[398298077,1765503038716,-539.11881904,0.00010999,2]
[398298078,1765503038726,-539.11881904,0.00010999,2]
[398298079,1765503038736,-539.11881904,0.00010999,2]
[398298080,1765503038746,-539.11881904,0.00010999,2]
[398298081,1765503038755,-539.11881904,0.00010999,2]
[398298082,1765503038765,-539.11881904,0.00010999,2]
[398298083,1765503038774,-539.11881904,0.00010999,2]
[398298084,1765503038784,-539.11881904,0.00010999,2]
[398298085,1765503038793,-539.11881904,0.00010999,2]
[398298086,1765503038804,-539.11881904,0.00010999,2]
[398298087,1765503038814,-648.26340307,0.00010999,2]
[398298088,1765503038824,-500.0,0.00010999,2]
[398298089,1765503038834,-500.0,0.00010999,2]
[398298090,1765503038844,-500.0,0.00010999,2]
[398298091,1765503038853,-500.0,0.00010999,2]
[398298092,1765503038864,-500.0,0.00010999,2]
[398298093,1765503038873,-500.0,0.00010999,2]
[398298094,1765503038883,-500.0,0.00010999,2]
[398298095,1765503038893,-500.0,0.00010999,2]
[398298096,1765503038902,-500.0,0.00010999,2]
[398298097,1765503038912,-500.0,0.00010999,2]
[398298098,1765503038922,-500.0,0.00010999,2]
[398298099,1765503038932,-500.0,0.00010999,2]
[398298100,1765503038941,-500.0,0.00010999,2]
[398298101,1765503038951,-500.0,0.00010999,2]
[398298102,1765503038961,-500.0,0.00010999,2]
[398298103,1765503038971,-500.0,0.00010999,2]
[398298104,1765503038980,-500.0,0.00010999,2]
[398298105,1765503038990,-500.0,0.00010999,2]
[398298106,1765503039000,-500.0,0.00010999,2]
[398298107,1765503039010,-500.0,0.00010999,2]
[398298108,1765503039020,-500.0,0.00010999,2]
[398298109,1765503039030,-500.0,0.00010999,2]
[398298110,1765503039040,-500.0,0.00010999,2]
[398298111,1765503039050,-500.0,0.00010999,2]
[398298112,1765503039061,-500.0,0.00010999,2]
[398298113,1765503039073,-500.0,0.00010999,2]
[398298114,1765503039084,-500.0,0.00010999,2]
[398298115,1765503039096,-500.0,0.00010999,2]
[398298116,1765503039106,-500.0,0.00010999,2]
[398298117,1765503039117,-500.0,0.00010999,2]
[398298118,1765503039127,-500.0,0.00010999,2]
[398298119,1765503039136,-500.0,0.00010999,2]
[398298120,1765503039146,-123961.2693333,0.00011,7]
[398298121,1765503039157,-300.0,0.00011177,2]
[398298122,1765503039167,-300.0,0.00011177,2]
[398298123,1765503039176,-300.0,0.00011177,2]
[398298124,1765503039187,-300.0,0.00011177,2]
[398298125,1765503039197,-300.0,0.00011177,2]
[398298126,1765503039206,-300.0,0.00011177,2]
[398298127,1765503039216,-300.0,0.00011177,2]
[398298128,1765503039225,-300.0,0.00011177,2]
[398298129,1765503039235,-300.0,0.00011177,2]
[398298130,1765503039244,-300.0,0.00011177,2]
[398298131,1765503039253,-300.0,0.00011177,2]
[398298132,1765503039263,-300.0,0.00011177,2]
[398298133,1765503039272,-300.0,0.00011177,2]
[398298134,1765503039282,-300.0,0.00011177,2]
[398298135,1765503039291,-300.0,0.00011177,2]
[398298136,1765503039301,-600.0,0.00011177,2]
[398298137,1765503039310,-319.33496789,0.00011277,2]
[398298138,1765503039319,-310.85647531,0.00011375,2]
[398298139,1765503039329,-151.0,0.000114,2]
[398298140,1765503039338,-178.14,0.000114,2]
[398298141,1765503039348,-151.0,0.00011493,2]
[398298142,1765503039358,-2773.56790519,0.00011493,2]
[398298143,1765503039367,-574.12855637,0.00011493,2]
[398298144,1765503039376,-10000.0,0.000115,2]
[398298145,1765503039386,-151.0,0.000115,2]
[398298146,1765503039395,-151.0,0.000117,2]
[398298147,1765503039405,-151.0,0.000118,2]
[398298148,1765503039415,-500.0,0.00011887,2]
[398298149,1765503039424,-151.0,0.00012,2]
[398298150,1765503039434,-151.0,0.00012041,2]
[398298151,1765503039443,-2876.18991768,0.00012041,2]
[398298152,1765503039452,-595.37131296,0.00012041,2]
[398298153,1765503039461,-420.0,0.00012087,2]
[398298154,1765503039471,-295.30641892,0.00012091,2]
[398298155,1765503039480,-772.0,0.000121,2]
[398298156,1765503039489,-151.0,0.000121,2]
[398298157,1765503039498,-445.781,0.00012115,2]
[398298158,1765503039507,-720.0,0.00012295,2]
[398298159,1765503039517,-151.0,0.000123,2]
[398298160,1765503039527,-151.0,0.000124,2]
[398298161,1765503039539,-5880.78108993,0.000125,2]
[398298162,1765503039548,-310.85647531,0.00012529,2]
[398298163,1765503039558,-151.0,0.00012589,2]
[398298164,1765503039567,-2629.43412103,0.00012589,2]
[398298165,1765503039577,-617.40005154,0.00012589,2]
[398298166,1765503039587,-151.0,0.000126,2]
[398298167,1765503039596,-151.0,0.000127,2]
[398298168,1765503039606,-192047.91366891,0.00012792,2]
[398298185,1765503116588,150.0,6.831e-05,2]
[398298186,1765503116982,150.0,7.156e-05,2]
[398298187,1765503117424,150.0,7.482e-05,2]
[398298188,1765503117830,150.0,7.807e-05,2]
[398298189,1765503118259,150.0,8.132e-05,2]
[398298190,1765503118658,150.0,8.458e-05,2]
[398298192,1765503187144,150.0,6.833e-05,2]
[398298193,1765503187507,150.0,7.158e-05,2]
[398298194,1765503187901,150.0,7.484e-05,2]
[398298195,1765503421367,193.1815861,0.00014,29]
[398298198,1765503806193,-543.0,8.8e-05,2]
[398298199,1765503806217,-178.15,8.8e-05,2]
[398298200,1765503806240,-344.23062719,9.34e-05,2]
[398298201,1765503806263,-344.11884339,0.00010959,7]
[398298202,1765503806289,-459.86375784,0.00010999,2]
[398298203,1765503806312,-199.41322547,0.00010999,2]
[398298215,1765504231679,-300.0,0.00011217,2]
[398298217,1765504231688,-234.54761844,0.00011217,2]
[398298223,1765504231733,-965.45238156,0.00011217,2]
[398298225,1765504231742,-337.34601465,0.00011218,2]
[398298227,1765504231751,-300.0,0.00011218,2]
[398298228,1765504231760,-300.0,0.00011218,2]
[398298231,1765504231770,-300.0,0.00011218,2]
[398298232,1765504231779,-300.0,0.00011218,2]
[398298234,1765504231788,-300.0,0.00011218,2]
[398298236,1765504231798,-300.0,0.00011218,2]
[398298239,1765504231807,-300.0,0.00011218,2]
[398298240,1765504231817,-300.0,0.00011218,2]
[398298243,1765504231827,-300.0,0.00011218,2]